fUST/lending_fUST_20250613
["ID","MTS","AMOUNT","RATE_DAILY","PERIOD"]
[365629874,1749813040102,-460.0,0.00021095,4]
[365629876,1749813040112,-460.0,0.00021095,4]
[365629878,1749813040121,-430.0,0.00021095,4]
[365629880,1749813040130,-440.0,0.00021095,4]
[365629882,1749813040139,-452.30384804,0.00021095,4]
[365629884,1749813040150,-460.0,0.00021095,4]
[365629886,1749813040159,-490.81705909,0.00021095,4]
[365629888,1749813040168,-598.69,0.00021095,4]
[365629890,1749813040178,-437.48978791,0.00021095,4]
[365629892,1749813040187,-516.76817004,0.00021095,4]
[365629894,1749813040196,-672.56,0.00021095,4]
[365629895,1749813040205,-460.0,0.00021095,4]
[365629897,1749813040214,-340.24444261,0.00021095,4]
[365630133,1749813042856,-119.75555739,0.00021095,4]
[365630135,1749813042866,-133.25444261,0.00021095,4]
[365632630,1749813110500,10000.0,0.00018,2]
[365632632,1749813130846,999.0,0.00018,2]
[365632639,1749813231022,200.0,0.00024991,60]
[365632642,1749813270635,200.0,0.00024991,60]
[365632654,1749813393516,460.0,0.00024991,60]
[365632655,1749813402033,200.0,0.00024991,60]
[365632656,1749813411174,182.0,0.00024991,60]
[365632657,1749813415277,460.0,0.00024991,60]
[365632659,1749813424729,2000.0,0.00019507,120]
[365632660,1749813425721,959.65,0.00024991,60]
[365632662,1749813446228,1840.0,0.00024991,60]
[365632668,1749813535440,200.0,0.00024992,60]
[365632674,1749813721380,165.141639,0.00013699,2]
[365632677,1749813734610,250.0,0.00024992,60]
[365632723,1749814051836,1478.55577966,0.00024993,120]
[365632732,1749814063895,180.79602587,0.00024993,120]
[365632736,1749814069404,2630.17770366,0.00024993,120]
[365632740,1749814082195,200.0,0.00024993,120]
[365632741,1749814082940,2780.48503412,0.00024993,60]
[365632744,1749814090204,264.81,0.00024993,60]
[365632746,1749814093811,268.90687327,0.00024993,120]
[365632747,1749814096084,543.23823561,0.00024993,120]
[365632748,1749814099782,188.0,0.0002,120]
[365632749,1749814102118,959.57316283,0.00024993,120]
[365632750,1749814102484,913.52868956,0.00024993,120]
[365632752,1749814105736,553.8319092,0.00024993,120]
[365632759,1749814110935,842.61765283,0.00024993,120]
[365632763,1749814111850,686.5378054,0.00024993,120]
[365632768,1749814113319,2972.6353429,0.00024993,60]
[365632769,1749814113530,240.82074905,0.00024993,120]
[365632775,1749814114532,1057.95465024,0.0002,120]
[365632776,1749814114670,241.5193813,0.00024993,120]
[365632777,1749814115272,2454.33404138,0.00024993,120]
[365632779,1749814115767,1021.55814421,0.00024993,120]
[365632781,1749814115986,2000.0,0.00024993,120]
[365632782,1749814116207,3049.69854085,0.00024993,120]
[365632783,1749814116684,1097.78092698,0.00024993,120]
[365632784,1749814118088,2594.42900072,0.00024993,120]
[365632786,1749814118576,1131.04623125,0.00024993,60]
[365632787,1749814118746,2539.73192913,0.00024993,120]
[365632789,1749814119235,1089.61789946,0.00024993,120]
[365632790,1749814119710,1004.9110189,0.00024993,120]
[365632791,1749814119961,1429.45951155,0.00024993,120]
[365632792,1749814120090,463.17151393,0.00024993,120]
[365632793,1749814120263,3043.48146754,0.00024998,120]
[365632794,1749814120294,723.36705411,0.00024998,120]
[365632795,1749814120747,1559.25999448,0.00024998,120]
[365632797,1749814121281,308.40813296,0.00024998,120]
[365632798,1749814121431,425.46269708,0.00024998,120]
[365632799,1749814121466,611.10112061,0.00024998,120]
[365632800,1749814121530,215.35279212,0.00024998,120]
[365632801,1749814121682,1605.11814257,0.00024998,120]
[365632804,1749814122362,1974.20444948,0.00024998,120]
[365632806,1749814122711,316.1562701,0.00024998,120]
[365632807,1749814122959,203.23134132,0.00024998,120]
[365632808,1749814124046,1381.04750715,0.00024998,120]
[365632809,1749814124078,669.31462086,0.00024998,120]
[365632810,1749814124306,218.09628184,0.0001536,120]
[365632812,1749814125051,532.78400107,0.00024998,120]
[365632814,1749814125119,210.95623421,0.00024998,120]
[365632817,1749814125619,1009.36870409,0.0002,120]
[365632820,1749814125973,218.82135117,0.00024998,120]
[365632823,1749814126344,207.89821366,0.00024998,120]
[365632825,1749814126896,2551.4001075,0.00024998,120]
[365632826,1749814127016,2533.98816794,0.00024998,120]
[365632893,1749814231966,-5380.0,0.000189,2]
[365632895,1749814231975,-172.1258584,0.00019189,2]
[365632897,1749814231985,-200.0,0.000196,2]
[365632899,1749814231995,-951.4371821,0.00019664,2]
[365632901,1749814232005,-245.80698186,0.000199,2]
[365632903,1749814232017,-7.69912088,0.0001993,2]
[365633039,1749814238369,-1192.30087912,0.0001993,2]
[365633041,1749814238380,-300.0,0.00019933,2]
[365633043,1749814238389,-300.0,0.00019933,2]
[365633045,1749814238398,-300.0,0.00019933,2]
[365633047,1749814238408,-24900.0,0.00019934,2]
[365633049,1749814238418,-1086.5020259,0.0002,2]
[365633053,1749814238427,-199.389859,0.00020068,2]
[365633055,1749814238437,-1000.0,0.00020099,2]
[365633058,1749814238447,-200.0,0.000201,2]
[365633060,1749814238456,-1000.0,0.00020162,2]
[365633062,1749814238465,-1000.0,0.00020162,2]
[365633064,1749814238475,-1247.61,0.00020175,2]
[365633066,1749814238485,-163.5887944,0.00020263,2]
[365633068,1749814238494,-157.05,0.00020494,2]
[365633070,1749814238503,-245.80698186,0.00020614,2]
[365633072,1749814238512,-298.0,0.00020617,2]
[365633074,1749814238523,-298.0,0.00020648,2]
[365633076,1749814238532,-930.0,0.00020696,2]
[365633078,1749814238542,-189.65726187,0.00020789,2]
[365633080,1749814238551,-298.0,0.00020789,2]
[365633082,1749814238561,-442.62766672,0.00020818,2]
[365633084,1749814238570,-298.0,0.00020821,2]
[365633086,1749814238580,-331.1554894,0.00020877,2]
[365633088,1749814238590,-298.0,0.00020889,2]
[365633090,1749814238600,-203.57847912,0.00020906,2]
[365633092,1749814238610,-298.0,0.00020938,2]
[365633094,1749814238619,-500.0,0.00020964,2]
[365633096,1749814238631,-442.62766672,0.00020969,2]
[365633098,1749814238640,-469.8606732,0.00020995,2]
[365633100,1749814238650,-5318.71595536,0.00021,2]
[365633102,1749814238660,-930.0,0.00021012,2]
[365633104,1749814238669,-500.0,0.00021073,2]
[365633106,1749814238678,-1120.68,0.00021085,3]
[365633108,1749814238688,-560.34,0.00021085,3]
[365633110,1749814238698,-280.17,0.00021085,3]
[365633112,1749814238707,-840.52,0.00021085,3]
[365633114,1749814238717,-315.3059208,0.00021085,10]
[365633115,1749814238726,-844.94977992,0.00021085,10]
[365633116,1749814238736,-4230.88,0.00021085,10]
[365633118,1749814238746,-3525.73,0.00021085,10]
[365633120,1749814238756,-2938.11,0.00021085,10]
[365633122,1749814238766,-155.299,0.00021094,2]
[365633123,1749814238775,-1000.0,0.00021094,2]
[365633125,1749814238785,-478.14549995,0.00021094,2]
[365633127,1749814238794,-500.0,0.00021094,2]
[365633129,1749814238803,-500.0,0.00021094,2]
[365633131,1749814238812,-500.0,0.00021094,2]
[365633133,1749814238820,-500.0,0.00021094,2]
[365633135,1749814238828,-500.0,0.00021094,2]
[365633137,1749814238837,-500.0,0.00021094,2]
[365633139,1749814238845,-500.0,0.00021094,2]
[365633141,1749814238853,-500.0,0.00021094,2]
[365633143,1749814238862,-500.0,0.00021094,2]
[365633145,1749814238870,-500.0,0.00021094,2]
[365633147,1749814238878,-500.0,0.00021094,2]
[365633149,1749814238886,-500.0,0.00021094,2]
[365633151,1749814238895,-500.0,0.00021094,2]
[365633152,1749814238903,-500.0,0.00021094,2]
[365633154,1749814238911,-500.0,0.00021094,2]
[365633156,1749814238919,-163.70025512,0.00021094,2]
[365633158,1749814238927,-500.0,0.00021094,2]
[365633160,1749814238940,-500.0,0.00021094,2]
[365633162,1749814238950,-500.0,0.00021094,2]
[365633164,1749814238959,-400.0,0.00021094,2]
[365633166,1749814238969,-500.0,0.00021094,2]
[365633169,1749814238979,-500.0,0.00021094,2]
[365633170,1749814238988,-500.0,0.00021094,2]
[365633172,1749814238997,-500.0,0.00021094,2]
[365633174,1749814239008,-500.0,0.00021094,2]
[365633176,1749814239020,-500.0,0.00021094,2]
[365633178,1749814239029,-450.0,0.00021094,2]
[365633180,1749814239039,-308.25923305,0.00021095,4]
[365633182,1749814239049,-460.0,0.00021095,4]
[365633198,1749814239188,-449.43740189,0.00021095,4]
[365633200,1749814239199,-435.16088717,0.00021095,4]
[365633202,1749814239208,-383.94054451,0.00021095,4]
[365633204,1749814239218,-460.0,0.00021095,4]
[365633206,1749814239228,-460.0,0.00021095,4]
[365633208,1749814239239,-418.1911264,0.00021095,4]
[365633210,1749814239249,-460.0,0.00021095,4]
[365633212,1749814239259,-460.0,0.00021095,4]
[365633214,1749814239268,-215.50876569,0.00021095,4]
[365633216,1749814239277,-313.01976456,0.00021095,4]
[365633218,1749814239287,-418.62836266,0.00021095,4]
[365633220,1749814239297,-460.0,0.00021095,4]
[365633222,1749814239306,-462.17708735,0.00021095,4]
[365633224,1749814239315,-363.50040102,0.00021095,4]
[365633226,1749814239325,-460.0,0.00021095,4]
[365633228,1749814239334,-460.0,0.00021095,4]
[365633230,1749814239344,-460.0,0.00021095,4]
[365633232,1749814239353,-460.0,0.00021095,4]
[365633234,1749814239363,-460.0,0.00021095,4]
[365633236,1749814239373,-460.0,0.00021095,4]
[365633238,1749814239386,-411.96685191,0.00021095,4]
[365633239,1749814239398,-481.52972227,0.00021095,4]
[365633242,1749814239408,-460.0,0.00021095,4]
[365633244,1749814239418,-439.12481181,0.00021095,4]
[365633246,1749814239428,-231.10878693,0.00021095,4]
[365633248,1749814239437,-236.13347621,0.00021095,4]
[365633250,1749814239446,-440.0,0.00021095,4]
[365633251,1749814239456,-460.0,0.00021095,4]
[365633253,1749814239465,-477.86246572,0.00021095,4]
[365633255,1749814239474,-460.0,0.00021095,4]
[365633257,1749814239484,-465.7814635,0.00021095,4]
[365633258,1749814239493,-460.0,0.00021095,4]
[365633259,1749814239502,-460.0,0.00021095,4]
[365633260,1749814239512,-460.0,0.00021095,4]
[365633261,1749814239522,-460.0,0.00021095,4]
[365633263,1749814239531,-460.0,0.00021095,2]
[365633265,1749814239540,-571.42,0.00021095,4]
[365633266,1749814239549,-420.0,0.00021095,4]
[365633267,1749814239559,-460.0,0.00021095,4]
[365633268,1749814239568,-460.0,0.00021095,4]
[365633269,1749814239577,-460.0,0.00021095,4]
[365633270,1749814239587,-260.01919756,0.00021095,4]
[365633271,1749814239596,-460.0,0.00021095,4]
[365633272,1749814239605,-460.0,0.00021095,4]
[365633273,1749814239616,-462.557886,0.00021095,4]
[365633274,1749814239625,-460.0,0.00021095,4]
[365633275,1749814239636,-460.0,0.00021095,4]
[365633276,1749814239646,-440.90850789,0.00021095,4]
[365633277,1749814239656,-406.63472803,0.00021095,4]
[365633278,1749814239665,-196.0551767,0.00021095,4]
[365633279,1749814239674,-280.0,0.00021095,4]
[365633280,1749814239683,-433.43512609,0.00021095,4]
[365633281,1749814239693,-460.0,0.00021095,4]
[365633282,1749814239702,-443.41786299,0.00021095,4]
[365633283,1749814239711,-500.0,0.00021095,2]
[365633284,1749814239721,-500.0,0.00021095,2]
[365633285,1749814239730,-500.0,0.00021095,2]
[365633286,1749814239739,-500.0,0.00021095,2]
[365633287,1749814239749,-500.0,0.00021095,2]
[365633288,1749814239759,-430.0,0.00021095,4]
[365633289,1749814239769,-430.0,0.00021095,4]
[365633290,1749814239780,-430.0,0.00021095,4]
[365633291,1749814239790,-460.0,0.00021095,4]
[365633292,1749814239799,-460.0,0.00021095,4]
[365633293,1749814239809,-400.23657272,0.00021095,4]
[365633294,1749814239818,-460.0,0.00021095,4]
[365633295,1749814239828,-432.73315798,0.00021095,4]
[365633296,1749814239838,-460.0,0.00021095,4]
[365633297,1749814239848,-596.6274282,0.00021095,4]
[365633298,1749814239857,-392.2574852,0.00021095,4]
[365633299,1749814239867,-460.0,0.00021095,4]
[365633300,1749814239876,-433.39602573,0.00021095,4]
[365633301,1749814239887,-421.72282329,0.00021095,4]
[365633302,1749814239896,-441.23619248,0.00021095,4]
[365633303,1749814239906,-384.55842994,0.00021095,4]
[365633304,1749814239915,-460.0,0.00021095,4]
[365633305,1749814239925,-460.0,0.00021095,4]
[365633306,1749814239937,-476.25641418,0.00021095,4]
[365633307,1749814239946,-258.36793314,0.00021095,4]
[365633308,1749814239955,-460.0,0.00021095,4]
[365633309,1749814239965,-460.0,0.00021095,4]
[365633310,1749814239975,-460.0,0.00021095,4]
[365633311,1749814239984,-460.0,0.00021095,4]
[365633312,1749814239994,-403.89545858,0.00021095,4]
[365633313,1749814240004,-460.0,0.00021095,4]
[365633314,1749814240014,-466.51155634,0.00021095,4]
[365633315,1749814240024,-460.0,0.00021095,4]
[365633316,1749814240033,-460.0,0.00021095,4]
[365633317,1749814240043,-460.0,0.00021095,4]
[365633318,1749814240052,-460.0,0.00021095,4]
[365633319,1749814240062,-439.4364531,0.00021095,4]
[365633321,1749814240073,-460.0,0.00021095,4]
[365633323,1749814240081,-420.0,0.00021095,4]
[365633325,1749814240094,-440.0,0.00021095,4]
[365633327,1749814240103,-460.0,0.00021095,4]
[365633328,1749814240112,-216.4139272,0.00021095,4]
[365633331,1749814240122,-460.0,0.00021095,4]
[365633333,1749814240132,-460.0,0.00021095,4]
[365633334,1749814240142,-460.0,0.00021095,4]
[365633337,1749814240152,-392.76347579,0.00021095,4]
[365633339,1749814240162,-470.76601834,0.00021095,4]
[365633340,1749814240171,-467.68169342,0.00021095,4]
[365633343,1749814240181,-407.25236881,0.00021095,4]
[365633344,1749814240191,-460.0,0.00021095,4]
[365633346,1749814240200,-547.08821089,0.00021095,4]
[365633348,1749814240212,-655.11,0.00021095,4]
[365633351,1749814240226,-460.0,0.00021095,4]
[365633353,1749814240240,-460.0,0.00021095,4]
[365633356,1749814240254,-460.0,0.00021095,4]
[365633358,1749814240266,-460.0,0.00021095,4]
[365633361,1749814240277,-932.67,0.00021095,4]
[365633363,1749814240291,-460.0,0.00021095,4]
[365633366,1749814240304,-420.0,0.00021095,4]
[365633368,1749814240317,-460.0,0.00021095,4]
[365633370,1749814240331,-370.0,0.00021095,4]
[365633373,1749814240344,-460.0,0.00021095,4]
[365633375,1749814240356,-390.0,0.00021095,4]
[365633378,1749814240370,-460.0,0.00021095,4]
[365633380,1749814240383,-435.48303998,0.00021095,4]
[365633382,1749814240396,-460.0,0.00021095,4]
[365633385,1749814240412,-469.4832053,0.00021095,4]
[365633387,1749814240425,-294.48293153,0.00021095,4]
[365633390,1749814240436,-460.0,0.00021095,4]
[365633391,1749814240449,-460.0,0.00021095,4]
[365633393,1749814240464,-484.49577776,0.00021095,4]
[365633395,1749814240475,-460.0,0.00021095,4]
[365633397,1749814240487,-460.0,0.00021095,4]
[365633398,1749814240498,-460.0,0.00021095,4]
[365633399,1749814240510,-460.0,0.00021095,4]
[365633400,1749814240523,-460.0,0.00021095,4]
[365633401,1749814240536,-460.0,0.00021095,4]
[365633402,1749814240549,-460.0,0.00021095,4]
[365633403,1749814240563,-242.52235857,0.00021095,4]
[365633404,1749814240575,-460.0,0.00021095,4]
[365633405,1749814240588,-460.0,0.00021095,4]
[365633406,1749814240603,-460.0,0.00021095,4]
[365633407,1749814240617,-460.0,0.00021095,4]
[365633408,1749814240629,-460.0,0.00021095,4]
[365633409,1749814240639,-460.0,0.00021095,4]
[365633410,1749814240651,-210.12001961,0.00021095,4]
[365633411,1749814240662,-460.0,0.00021095,4]
[365633412,1749814240675,-601.44732573,0.00021095,4]
[365633413,1749814240690,-460.0,0.00021095,4]
[365633415,1749814240703,-460.0,0.00021095,4]
[365633417,1749814240714,-460.0,0.00021095,4]
[365633419,1749814240726,-422.72188227,0.00021095,4]
[365633422,1749814240739,-460.0,0.00021095,4]
[365633424,1749814240752,-425.69046183,0.00021095,4]
[365633426,1749814240765,-460.0,0.00021095,4]
[365633428,1749814240776,-420.0,0.00021095,4]
[365633431,1749814240787,-460.0,0.00021095,4]
[365633432,1749814240798,-460.0,0.00021095,4]
[365633433,1749814240810,-460.0,0.00021095,4]
[365633434,1749814240821,-460.0,0.00021095,4]
[365633436,1749814240833,-426.36435969,0.00021095,4]
[365633438,1749814240845,-460.0,0.00021095,4]
[365633440,1749814240857,-430.0,0.00021095,4]
[365633442,1749814240868,-460.0,0.00021095,4]
[365633444,1749814240880,-460.0,0.00021095,4]
[365633446,1749814240893,-460.0,0.00021095,4]
[365633449,1749814240904,-460.0,0.00021095,4]
[365633450,1749814240916,-887.88,0.00021095,4]
[365633451,1749814240927,-460.0,0.00021095,4]
[365633452,1749814240942,-2798.6,0.00021095,4]
[365633453,1749814240954,-1126.63,0.00021095,4]
[365633454,1749814240966,-439.40928583,0.00021095,4]
[365633455,1749814240980,-469.23884698,0.00021095,4]
[365633456,1749814240990,-460.0,0.00021095,4]
[365633457,1749814241002,-460.0,0.00021095,4]
[365633458,1749814241013,-401.5644754,0.00021095,4]
[365633459,1749814241025,-460.0,0.00021095,4]
[365633460,1749814241036,-717.67,0.00021095,4]
[365633461,1749814241047,-444.13834226,0.00021095,4]
[365633462,1749814241060,-460.0,0.00021095,4]
[365633463,1749814241071,-460.0,0.00021095,4]
[365633464,1749814241082,-463.82581969,0.00021095,4]
[365633465,1749814241093,-460.0,0.00021095,4]
[365633466,1749814241105,-442.45751134,0.00021095,4]
[365633467,1749814241116,-460.0,0.00021095,4]
[365633468,1749814241129,-1041.72,0.00021095,4]
[365633469,1749814241140,-460.0,0.00021095,4]
[365633470,1749814241151,-460.0,0.00021095,4]
[365633471,1749814241162,-430.0,0.00021095,4]
[365633472,1749814241174,-750.28,0.00021095,4]
[365633473,1749814241186,-460.0,0.00021095,4]
[365633474,1749814241198,-460.0,0.00021095,4]
[365633475,1749814241209,-433.20021596,0.00021095,4]
[365633476,1749814241220,-460.0,0.00021095,4]
[365633477,1749814241231,-468.59429328,0.00021095,4]
[365633478,1749814241243,-500.0,0.00021095,4]
[365633479,1749814241254,-500.0,0.00021095,4]
[365633480,1749814241266,-500.0,0.00021095,4]
[365633481,1749814241277,-500.0,0.00021095,4]
[365633482,1749814241288,-500.0,0.00021095,4]
[365633483,1749814241300,-500.0,0.00021095,4]
[365633484,1749814241311,-460.0,0.00021095,4]
[365633485,1749814241323,-500.0,0.00021095,4]
[365633486,1749814241334,-460.0,0.00021095,4]
[365633487,1749814241345,-332.41880344,0.00021095,4]
[365633488,1749814241357,-467.1251489,0.00021095,4]
[365633489,1749814241368,-645.59,0.00021095,4]
[365633490,1749814241379,-460.0,0.00021095,4]
[365633491,1749814241391,-460.0,0.00021095,4]
[365633492,1749814241403,-430.0,0.00021095,4]
[365633493,1749814241414,-782.08,0.00021095,4]
[365633494,1749814241552,-402.97114374,0.00021095,4]
[365633495,1749814241566,-460.0,0.00021095,4]
[365633496,1749814241576,-448.27343819,0.00021095,4]
[365633497,1749814241585,-500.0,0.00021095,4]
[365633499,1749814241594,-460.0,0.00021095,4]
[365633501,1749814241603,-460.0,0.00021095,4]
[365633503,1749814241612,-460.0,0.00021095,4]
[365633505,1749814241622,-460.0,0.00021095,4]
[365633507,1749814241632,-440.0,0.00021095,4]
[365633508,1749814241641,-2495.21,0.00021135,2]
[365633510,1749814241651,-178.0,0.00021141,2]
[365633512,1749814241661,-365.2062734,0.00021151,2]
[365633514,1749814241671,-365.2062734,0.00021151,2]
[365633516,1749814241680,-365.2062734,0.00021151,2]
[365633518,1749814241691,-734.9553232,0.00021151,2]
[365633520,1749814241701,-930.0,0.00021155,2]
[365633522,1749814241711,-298.0,0.00021295,2]
[365633524,1749814241720,-930.0,0.00021304,2]
[365633526,1749814241730,-245.80698186,0.00021328,2]
[365633528,1749814241739,-500.0,0.00021358,2]
[365633530,1749814241749,-500.0,0.00021367,4]
[365633531,1749814241758,-500.0,0.00021368,2]
[365633532,1749814241768,-171.13,0.00021368,2]
[365633533,1749814241778,-500.0,0.00021368,2]
[365633534,1749814241788,-500.0,0.00021368,2]
[365633535,1749814241798,-500.0,0.00021368,4]
[365633536,1749814241808,-500.0,0.00021368,4]
[365633537,1749814241817,-2414.6130968,0.00021369,2]
[365633538,1749814241827,-22750.36968167,0.00021369,2]
[365633539,1749814241836,-460.0,0.00021369,4]
[365633540,1749814241846,-420.0,0.00021369,4]
[365633541,1749814241854,-460.0,0.00021369,4]
[365633542,1749814241863,-460.0,0.00021369,4]
[365633543,1749814241872,-420.0,0.00021369,4]
[365633544,1749814241882,-460.0,0.00021369,4]
[365633545,1749814241895,-460.0,0.00021369,4]
[365633546,1749814241904,-268.15995988,0.00021369,4]
[365633547,1749814241913,-460.0,0.00021369,4]
[365633548,1749814241922,-420.0,0.00021369,4]
[365633549,1749814241931,-435.67172874,0.00021369,4]
[365633550,1749814241944,-460.0,0.00021369,4]
[365633551,1749814241953,-386.05329912,0.00021369,4]
[365633552,1749814241963,-460.0,0.00021369,4]
[365633553,1749814241974,-340.0,0.00021369,4]
[365633554,1749814241985,-460.0,0.00021369,2]
[365633555,1749814241994,-571.42,0.00021369,4]
[365633556,1749814242003,-460.0,0.00021369,4]
[365633557,1749814242013,-161.63,0.00021369,4]
[365633558,1749814242024,-451.42824281,0.00021369,4]
[365633559,1749814242033,-420.0,0.00021369,4]
[365633560,1749814242043,-460.0,0.00021369,4]
[365633561,1749814242052,-460.0,0.00021369,4]
[365633562,1749814242062,-440.0,0.00021369,4]
[365633563,1749814242072,-469.68200136,0.00021369,4]
[365633564,1749814242081,-460.0,0.00021369,4]
[365633565,1749814242090,-460.0,0.00021369,4]
[365633566,1749814242101,-430.0,0.00021369,4]
[365633567,1749814242111,-531.23865273,0.00021369,4]
[365633568,1749814242120,-460.0,0.00021369,4]
[365633569,1749814242130,-460.0,0.00021369,4]
[365633570,1749814242140,-460.0,0.00021369,4]
[365633571,1749814242150,-460.0,0.00021369,4]
[365633572,1749814242159,-460.0,0.00021369,4]
[365633573,1749814242169,-340.0,0.00021369,4]
[365633574,1749814242179,-150.28,0.00021369,4]
[365633575,1749814242189,-460.0,0.00021369,4]
[365633576,1749814242198,-460.0,0.00021369,4]
[365633577,1749814242208,-460.0,0.00021369,4]
[365633578,1749814242217,-655.11,0.00021369,4]
[365633579,1749814242227,-460.0,0.00021369,4]
[365633580,1749814242237,-460.0,0.00021369,4]
[365633581,1749814242246,-932.67,0.00021369,4]
[365633582,1749814242256,-460.0,0.00021369,4]
[365633583,1749814242265,-452.2042487,0.00021369,4]
[365633584,1749814242275,-460.0,0.00021369,4]
[365633585,1749814242285,-460.0,0.00021369,4]
[365633586,1749814242294,-460.0,0.00021369,4]
[365633587,1749814242305,-460.0,0.00021369,4]
[365633588,1749814242314,-460.0,0.00021369,4]
[365633589,1749814242324,-460.0,0.00021369,4]
[365633590,1749814242333,-460.0,0.00021369,4]
[365633591,1749814242343,-469.68682655,0.00021369,4]
[365633592,1749814242353,-390.0,0.00021369,4]
[365633593,1749814242363,-460.0,0.00021369,4]
[365633594,1749814242372,-494.07415984,0.00021369,4]
[365633595,1749814242381,-460.0,0.00021369,4]
[365633596,1749814242391,-206.78806273,0.00021369,4]
[365633597,1749814242401,-460.0,0.00021369,4]
[365633598,1749814242411,-460.0,0.00021369,4]
[365633599,1749814242421,-460.0,0.00021369,4]
[365633600,1749814242431,-460.0,0.00021369,4]
[365633601,1749814242440,-460.0,0.00021369,4]
[365633602,1749814242450,-569.91663346,0.00021369,4]
[365633603,1749814242460,-410.0,0.00021369,4]
[365633604,1749814242470,-460.0,0.00021369,4]
[365633605,1749814242480,-462.6264709,0.00021369,4]
[365633606,1749814242490,-388.22864682,0.00021369,4]
[365633607,1749814242500,-420.0,0.00021369,4]
[365633608,1749814242510,-410.0,0.00021369,4]
[365633609,1749814242520,-887.88,0.00021369,4]
[365633610,1749814242533,-2798.6,0.00021369,4]
[365633611,1749814242543,-1126.63,0.00021369,4]
[365633612,1749814242552,-460.0,0.00021369,4]
[365633613,1749814242562,-460.0,0.00021369,4]
[365633614,1749814242571,-717.67,0.00021369,4]
[365633615,1749814242581,-460.0,0.00021369,4]
[365633616,1749814242591,-460.0,0.00021369,4]
[365633617,1749814242600,-460.0,0.00021369,4]
[365633618,1749814242610,-286.19,0.00021369,4]
[365633619,1749814242620,-1041.72,0.00021369,4]
[365633620,1749814242630,-530.14,0.00021369,4]
[365633622,1749814242640,-460.0,0.00021369,4]
[365633623,1749814242651,-750.28,0.00021369,4]
[365633624,1749814242661,-460.0,0.00021369,4]
[365633625,1749814242671,-430.0,0.00021369,4]
[365633626,1749814242681,-460.0,0.00021369,4]
[365633627,1749814242691,-460.0,0.00021369,4]
[365633628,1749814242703,-645.59,0.00021369,4]
[365633629,1749814242713,-460.0,0.00021369,4]
[365633630,1749814242723,-460.0,0.00021369,4]
[365633631,1749814242736,-782.08,0.00021369,4]
[365633632,1749814242746,-268.72212638,0.00021369,4]
[365633633,1749814242755,-460.0,0.00021369,4]
[365633634,1749814242765,-460.0,0.00021369,4]
[365633635,1749814242775,-500.0,0.00021417,2]
[365633636,1749814242785,-469.86067316,0.00021463,2]
[365633637,1749814242794,-200.0,0.00021614,2]
[365633638,1749814242804,-1000.0,0.00021621,2]
[365633639,1749814242814,-500.0,0.00021641,4]
[365633640,1749814242824,-500.0,0.00021642,2]
[365633641,1749814242834,-500.0,0.00021642,2]
[365633642,1749814242844,-500.0,0.00021642,2]
[365633643,1749814242854,-500.0,0.00021642,4]
[365633644,1749814242864,-178.29287166,0.00021642,4]
[365633645,1749814242874,-607.18,0.00021643,4]
[365633646,1749814242885,-451.4369312,0.00021643,4]